bitfinex/quotes_SOLUSD_20240623
["timestamp","ask_amount","ask_price","bid_price","bid_amount"]
[1719158486455,7.5717,132.07,132.06,200.0]
[1719158486825,27.5717,132.07,132.06,200.0]
[1719158488136,20.0,132.07,132.06,200.0]
[1719158489044,27.5717,132.07,132.06,200.0]
[1719158489222,20.0,132.07,132.06,200.0]
[1719158489426,27.5717,132.07,132.06,200.0]
[1719158489836,7.5734,132.04,132.03,200.0]
[1719158490019,7.5734,132.04,132.03,100.0]
[1719158490215,7.5723,132.06,132.05,100.0]
[1719158490416,27.5723,132.06,132.05,100.0]
[1719158490643,7.5734,132.04,132.03,200.0]
[1719158490945,27.5734,132.04,132.03,200.0]
[1719158491462,7.5751,132.01,132.0,200.0]
[1719158491637,7.5751,132.01,131.95,22.9609]
[1719158491638,7.5763,131.99,131.98,200.0]
[1719158492144,7.5752,132.01,132.0,100.0]
[1719158492330,34.9342,132.05,132.02,100.0]
[1719158492537,7.574,132.03,132.02,100.0]
[1719158492845,20.0,132.03,132.02,100.0]
[1719158493519,27.574,132.03,132.02,100.0]
[1719158495547,46.509,132.03,132.02,100.0]
[1719158495748,7.5751,132.01,132.0,200.0]
[1719158495952,27.5751,132.01,132.0,200.0]
[1719158496246,27.5751,132.01,132.0,100.0]
[1719158496453,27.5751,132.01,131.98,200.0]
[1719158496454,20.0,132.01,131.98,200.0]
[1719158496625,18.935,132.03,131.98,200.0]
[1719158496949,7.5751,132.01,132.0,100.0]
[1719158497448,27.5751,132.01,132.0,100.0]
[1719158497652,20.0,132.01,131.98,200.0]
[1719158497829,20.0,132.0,131.98,200.0]
[1719158498028,18.935,132.03,131.98,200.0]
[1719158498234,20.0,132.02,131.98,200.0]
[1719158498450,7.5763,131.99,131.98,200.0]
[1719158498947,27.5763,131.99,131.98,200.0]
[1719158501527,7.5774,131.97,131.96,200.0]
[1719158501732,7.5774,131.97,131.96,100.0]
[1719158502053,27.5774,131.97,131.96,100.0]
[1719158502257,20.0,131.97,131.94,100.0]
[1719158502467,20.0,131.97,131.92,22.9609]
[1719158502468,7.5797,131.93,131.92,100.0]
[1719158502959,27.5797,131.93,131.92,100.0]
[1719158503531,7.5805,131.92,131.9,100.0]
[1719158503850,27.5809,131.91,131.9,100.0]
[1719158504178,7.5818,131.9,131.88,100.0]
[1719158504450,27.5811,131.91,131.9,100.0]
[1719158504970,7.5817,131.9,131.88,200.0]
[1719158505845,27.581,131.91,131.9,100.0]
[1719158506249,20.0,131.91,131.9,200.0]
[1719158508255,34.9458,131.97,131.94,100.0]
[1719158508560,34.9458,131.97,131.93,100.0]
[1719158508561,20.0,131.96,131.93,100.0]
[1719158508966,7.5792,131.94,131.93,100.0]
[1719158509541,7.5797,131.93,131.92,100.0]
[1719158509766,7.5809,131.91,131.9,100.0]
[1719158510559,27.5809,131.91,131.9,100.0]
[1719158512763,27.5809,131.91,131.9,200.0]
[1719158513982,20.0,131.91,131.9,200.0]
[1719158515067,16.0018,131.97,131.92,200.0]
[1719158515265,7.5797,131.93,131.92,200.0]
[1719158515956,20.0,131.93,131.92,200.0]
[1719158516359,27.5797,131.93,131.92,200.0]
[1719158519958,7.5809,131.91,131.9,200.0]
[1719158520163,7.5809,131.91,131.9,100.0]
[1719158520381,20.0,131.91,131.9,200.0]
[1719158520583,27.5809,131.91,131.9,200.0]
[1719158520775,20.0,131.91,131.9,200.0]
[1719158521382,27.5809,131.91,131.9,200.0]
[1719158521582,20.0,131.91,131.9,200.0]
[1719158521787,27.5809,131.91,131.9,200.0]
[1719158522292,20.0,131.91,131.9,200.0]
[1719158522773,7.582,131.89,131.88,200.0]
[1719158523302,7.5817,131.9,131.88,200.0]
[1719158523470,27.582,131.89,131.88,200.0]
[1719158523893,27.582,131.89,131.88,100.0]
[1719158524375,7.5832,131.87,131.86,100.0]
[1719158524787,27.5832,131.87,131.86,100.0]
[1719158526079,7.5843,131.85,131.84,200.0]
[1719158526515,27.5843,131.85,131.84,200.0]
[1719158529913,27.5843,131.85,131.84,100.0]
[1719158530095,20.0,131.85,131.82,100.0]
[1719158530419,20.0,131.84,131.82,100.0]
[1719158530602,7.5855,131.83,131.82,100.0]
[1719158530913,27.5855,131.83,131.82,100.0]
[1719158533110,20.0,131.83,131.82,200.0]
[1719158533624,7.5845,131.85,131.84,200.0]
[1719158533829,27.5845,131.85,131.84,200.0]
[1719158536308,27.5845,131.85,131.84,100.0]
[1719158536511,7.5855,131.83,131.82,200.0]
[1719158537004,27.5855,131.83,131.82,200.0]
[1719158538526,7.5866,131.81,131.8,100.0]
[1719158538699,7.5878,131.79,131.78,200.0]
[1719158538897,27.5878,131.79,131.78,200.0]
[1719158539626,27.5878,131.79,131.78,100.0]
[1719158539818,7.5888,131.78,131.76,200.0]
[1719158540315,27.5889,131.77,131.76,200.0]
[1719158540997,27.5889,131.77,131.76,100.0]
[1719158543227,27.5889,131.77,131.76,200.0]
[1719158544331,27.5889,131.77,131.76,100.0]
[1719158545207,27.5889,131.77,131.76,200.0]
[1719158547810,27.5889,131.77,131.76,100.0]
[1719158548819,7.5901,131.75,131.74,200.0]
[1719158549627,7.5897,131.76,131.74,200.0]
[1719158551632,27.5891,131.77,131.76,200.0]
[1719158552907,15.41441062,131.81,131.8,100.0]
[1719158553110,27.5866,131.81,131.8,100.0]
[1719158554332,7.5857,131.83,131.82,200.0]
[1719158554535,7.5857,131.83,131.78,6.5842]
[1719158554536,15.7187,131.89,131.84,200.0]
[1719158554762,7.5843,131.85,131.84,200.0]
[1719158556035,27.5843,131.85,131.84,100.0]
[1719158556745,27.5843,131.85,131.82,200.0]
[1719158556921,7.5855,131.83,131.82,200.0]
[1719158557327,27.5855,131.83,131.82,200.0]
[1719158559548,20.0,131.83,131.82,200.0]
[1719158559760,27.5855,131.83,131.82,200.0]
[1719158562037,20.0,131.83,131.82,200.0]
[1719158562625,27.5855,131.83,131.82,200.0]
[1719158563833,20.0,131.83,131.82,200.17]
[1719158564033,20.0,131.83,131.82,200.34]
[1719158565940,23.52374394,131.89,131.86,100.0]
[1719158566152,7.5832,131.87,131.86,100.0]
[1719158566362,27.5832,131.87,131.86,100.0]
[1719158571969,7.5838,131.86,131.85,100.0]
[1719158575477,18.9553,131.89,131.87,200.0]
[1719158575955,20.0,131.88,131.87,200.0]
[1719158576375,27.5826,131.88,131.87,200.0]
[1719158577576,7.582,131.89,131.87,200.0]
[1719158577782,15.35566493,131.91,131.9,200.0]
[1719158577980,7.5809,131.91,131.9,100.0]
[1719158578862,27.5809,131.91,131.9,100.0]
[1719158579164,35.1608,131.91,131.86,100.0]
[1719158579367,7.5832,131.87,131.86,100.0]
[1719158579567,7.584,131.86,131.84,200.0]
[1719158579956,7.5834,131.87,131.86,100.0]
[1719158580173,7.5834,131.87,131.84,100.0]
[1719158580174,7.5834,131.87,131.84,200.0]
[1719158580375,7.5829,131.88,131.86,200.0]
[1719158580767,20.0,131.87,131.86,200.0]
[1719158581404,27.5832,131.87,131.86,200.0]
[1719158581989,20.0,131.87,131.86,200.0]
[1719158583483,18.9481,131.94,131.9,200.0]
[1719158583796,7.5809,131.91,131.9,200.0]
[1719158584102,7.5805,131.92,131.9,200.0]
[1719158584479,20.0,131.91,131.9,200.0]
[1719158584876,27.5809,131.91,131.9,200.0]
[1719158585488,20.0,131.91,131.9,200.0]
[1719158586489,7.5795,131.94,131.93,200.0]
[1719158586698,27.5795,131.94,131.93,200.0]
[1719158587011,27.5795,131.94,131.93,100.0]
[1719158589012,20.0,131.94,131.93,200.0]
[1719158589672,27.5792,131.94,131.93,200.0]
[1719158590380,20.0,131.94,131.93,200.0]
[1719158590575,7.5774,131.97,131.95,200.0]
[1719158590781,7.577,131.98,131.97,200.0]
[1719158590996,27.5765,131.99,131.97,200.0]
[1719158591198,7.5765,131.99,131.97,200.0]
[1719158591498,7.5769,131.98,131.97,200.0]
[1719158592881,27.5769,131.98,131.97,200.0]
[1719158593490,20.0,131.98,131.97,200.0]
[1719158593717,20.0,131.98,131.95,200.0]
[1719158593925,7.578,131.96,131.95,100.0]
[1719158594381,27.578,131.96,131.95,100.0]
[1719158596499,20.0,131.96,131.95,200.0]
[1719158597799,7.5764,131.99,131.98,100.0]
[1719158597979,7.5758,132.0,131.98,100.0]
[1719158599385,20.0,131.99,131.98,100.0]
[1719158600900,7.5754,132.01,132.0,200.0]
[1719158601088,27.5754,132.01,132.0,200.0]
[1719158602282,7.5763,131.99,131.98,200.0]
[1719158602592,7.5758,132.0,131.98,200.0]
[1719158602791,20.0,131.99,131.98,200.0]
[1719158603684,27.5763,131.99,131.98,200.0]
[1719158604207,20.0,131.99,131.98,200.0]
[1719158604781,7.5754,132.01,132.0,100.0]
[1719158604978,27.5754,132.01,132.0,100.0]
[1719158605983,27.5754,132.01,132.0,200.0]
[1719158607706,20.0,132.01,132.0,200.0]
[1719158608613,27.5751,132.01,132.0,200.0]
[1719158611599,20.0,132.01,132.0,200.0]
[1719158613712,45.4674,132.08,132.03,100.0]
[1719158613713,7.5737,132.04,132.03,100.0]
[1719158613920,27.5737,132.04,132.03,100.0]
[1719158614388,23.7900547,132.09,132.05,200.0]
[1719158614716,7.5717,132.07,132.05,200.0]
[1719158615916,7.5723,132.06,132.05,200.0]
[1719158616123,34.9147,132.09,132.05,200.0]
[1719158616325,7.5719,132.07,132.05,200.0]
[1719158616898,20.0,132.06,132.05,200.0]
[1719158618131,7.5714,132.08,132.07,100.0]
[1719158618299,27.5714,132.08,132.07,100.0]
[1719158618803,27.5714,132.08,132.07,200.0]
[1719158619000,20.0,132.08,132.07,200.0]
[1719158621327,8.4191896,132.1,132.09,100.0]
[1719158621511,28.4191896,132.1,132.09,200.0]
[1719158621702,20.8489896,132.1,132.09,200.0]
[1719158622343,28.4189896,132.1,132.09,200.0]
[1719158624231,28.4189896,132.1,132.09,100.0]
[1719158625635,28.4189896,132.1,132.09,200.0]
[1719158626617,28.4189896,132.1,132.09,100.0]
[1719158630844,20.8489896,132.1,132.07,200.0]
[1719158631051,7.5721,132.07,132.05,200.0]
[1719158633559,0.8489896,132.1,132.05,200.0]
[1719158633741,7.5711,132.09,132.05,200.0]
[1719158633940,20.0,132.08,132.05,200.0]
[1719158634756,27.5712,132.08,132.05,200.0]
[1719158635457,26.54649432,132.08,132.05,200.0]
[1719158636257,18.97529432,132.08,132.07,100.0]
[1719158636465,18.97529432,132.08,132.07,200.0]
[1719158637465,26.54639432,132.08,132.07,200.0]
[1719158637627,26.54639432,132.08,132.07,100.0]
[1719158638034,18.97529432,132.08,132.07,200.0]
[1719158640259,26.54639432,132.08,132.07,100.0]
[1719158640456,7.5723,132.06,132.05,200.0]
[1719158640657,7.5723,132.06,132.05,100.0]
[1719158640862,7.5731,132.05,132.03,200.0]
[1719158641062,7.571,132.09,132.07,100.0]
[1719158641239,27.5711,132.08,132.07,100.0]
[1719158644267,7.5734,132.04,132.03,100.0]
[1719158644445,7.574,132.03,132.02,100.0]
[1719158644646,27.574,132.03,132.02,100.0]
[1719158645150,20.0,132.03,132.02,100.0]
[1719158646344,20.0,132.03,132.01,100.0]
[1719158646661,7.5746,132.02,132.01,100.0]
[1719158646864,27.5746,132.02,132.01,100.0]
[1719158647173,27.5746,132.02,131.99,100.0]
[1719158647357,20.0,132.01,131.99,100.0]
[1719158647546,20.0,132.01,131.99,200.0]
[1719158652654,27.5753,132.01,131.99,200.0]
[1719158652954,7.5769,131.98,131.97,100.0]
[1719158653352,27.5769,131.98,131.97,100.0]
[1719158653549,20.0,131.98,131.97,100.0]
[1719158653854,20.0,131.98,131.97,200.0]
[1719158654271,20.0,131.98,131.97,200.17]
[1719158654461,20.0,131.98,131.97,207.7474]
[1719158654969,20.0,131.98,131.97,200.0]
[1719158655753,20.0,131.98,131.97,200.17]
[1719158655954,20.0,131.98,131.97,200.0]
[1719158656975,27.5769,131.98,131.97,200.0]
[1719158658671,20.0,131.98,131.97,200.0]
[1719158661471,27.5769,131.98,131.97,200.0]
[1719158662177,20.0,131.98,131.97,200.0]
[1719158662750,27.5769,131.98,131.97,100.0]
[1719158663985,20.0,131.98,131.97,200.0]
[1719158665591,27.5769,131.98,131.97,200.0]
[1719158666589,20.0,131.98,131.97,200.0]
[1719158667187,27.5769,131.98,131.97,200.0]
[1719158667367,20.0,131.98,131.97,200.0]
[1719158667877,7.5795,131.94,131.92,200.0]
[1719158668282,20.0,131.93,131.92,200.0]
[1719158668965,20.0,131.93,131.92,100.0]
[1719158669976,20.0,131.93,131.92,200.0]
[1719158672398,27.5797,131.93,131.92,200.0]
[1719158673692,7.5805,131.92,131.9,200.0]
[1719158674196,27.58,131.93,131.9,200.0]
[1719158674985,27.58,131.93,131.88,53.2525]
[1719158674986,20.0,131.93,131.92,200.0]
[1719158676783,7.5781,131.96,131.95,100.0]
[1719158677293,27.5781,131.96,131.95,100.0]
[1719158679623,20.0,131.96,131.95,100.0]
[1719158679784,7.5759,132.0,131.98,200.0]
[1719158679983,7.5763,131.99,131.98,200.0]
[1719158680200,27.5763,131.99,131.98,200.0]
[1719158681220,27.5763,131.99,131.98,100.0]
[1719158682006,7.5769,131.98,131.96,200.0]
[1719158682378,20.0,131.97,131.96,200.0]
[1719158683282,15.36159683,132.03,132.02,100.0]
[1719158683508,7.5736,132.04,132.02,200.0]
[1719158683898,7.5731,132.05,132.04,200.0]
[1719158684388,7.5731,132.05,132.02,100.0]
[1719158684618,7.5746,132.02,132.01,200.0]
[1719158684798,7.5742,132.03,132.01,200.0]
[1719158685103,7.5746,132.02,132.01,200.0]
[1719158686011,27.5746,132.02,132.01,100.0]
[1719158686222,20.0,132.02,131.99,100.0]
[1719158686416,20.0,132.01,131.99,100.0]
[1719158686600,18.9351,132.03,131.99,100.0]
[1719158686802,20.0,132.02,131.99,100.0]
[1719158687015,7.5757,132.0,131.99,100.0]
[1719158687419,27.5757,132.0,131.99,100.0]
[1719158689122,7.5765,131.99,131.97,200.0]
[1719158689438,7.5769,131.98,131.97,100.0]
[1719158689802,20.0,131.98,131.97,100.0]
[1719158690006,20.0,131.98,131.97,200.0]
[1719158691515,20.0,131.98,131.97,100.0]
[1719158692116,27.5769,131.98,131.97,100.0]
[1719158693319,20.0,131.98,131.97,200.0]
[1719158694349,27.5769,131.98,131.97,200.0]
[1719158696451,46.5191,131.98,131.97,100.0]
[1719158696641,27.5769,131.98,131.97,100.0]
[1719158701449,27.5769,131.98,131.97,200.0]
[1719158704863,20.0,131.98,131.97,200.0]
[1719158705765,38.9422,131.98,131.95,100.0]
[1719158705956,7.578,131.96,131.95,100.0]
[1719158706163,27.578,131.96,131.95,100.0]
[1719158706559,20.0,131.96,131.93,100.0]
[1719158706874,18.9422,131.98,131.93,100.0]
[1719158706875,27.5788,131.95,131.93,100.0]
[1719158707571,7.5792,131.94,131.93,100.0]
[1719158707779,7.5803,131.92,131.91,100.0]
[1719158708761,7.5815,131.9,131.89,100.0]
[1719158708975,27.5815,131.9,131.89,100.0]
[1719158711260,20.0,131.9,131.89,100.0]
[1719158711460,20.0,131.9,131.89,200.0]
[1719158711676,20.0,131.9,131.89,200.17]
[1719158711869,7.5798,131.93,131.92,100.0]
[1719158712067,7.5803,131.92,131.91,100.0]
[1719158712493,27.5803,131.92,131.91,100.0]
[1719158712859,7.5809,131.91,131.9,100.0]
[1719158713062,18.9492,131.94,131.89,100.0]
[1719158713568,7.5815,131.9,131.89,100.0]
[1719158714266,7.5811,131.91,131.89,100.0]
[1719158714468,20.0,131.9,131.89,100.0]
[1719158714887,27.5815,131.9,131.89,100.0]
[1719158715362,20.0,131.9,131.89,100.0]
[1719158715562,7.5797,131.93,131.92,100.0]
[1719158715788,27.5797,131.93,131.92,100.0]
[1719158716103,7.5789,131.95,131.94,200.0]
[1719158718495,27.5789,131.95,131.94,200.0]
[1719158719890,27.5789,131.95,131.94,100.0]
[1719158722576,20.0,131.95,131.94,100.0]
[1719158722991,20.0,131.95,131.94,200.0]
[1719158723389,27.5786,131.95,131.94,200.0]
[1719158724110,27.5786,131.95,131.94,100.0]
[1719158725095,7.5797,131.93,131.92,100.0]
[1719158725518,7.5809,131.91,131.9,100.0]
[1719158725994,27.5809,131.91,131.9,100.0]
[1719158727531,20.0,131.91,131.9,200.0]
[1719158727711,20.0,131.91,131.9,200.34]
[1719158727906,7.5794,131.94,131.93,100.0]
[1719158728227,27.5794,131.94,131.93,100.0]
[1719158728998,7.5803,131.92,131.91,100.0]
[1719158729388,27.5803,131.92,131.91,100.0]
[1719158730701,7.5815,131.9,131.89,200.0]
[1719158731000,27.5815,131.9,131.89,200.0]
[1719158731216,27.5815,131.9,131.89,100.0]
[1719158733223,20.0,131.9,131.87,200.0]
[1719158733404,20.0,131.89,131.87,200.0]
[1719158733598,7.5826,131.88,131.87,100.0]
[1719158733809,20.0,131.88,131.85,100.0]
[1719158734010,7.5838,131.86,131.85,100.0]
[1719158734416,27.5838,131.86,131.85,100.0]
[1719158734921,20.0,131.86,131.85,100.0]
[1719158735626,7.5823,131.89,131.88,100.0]
[1719158735805,27.5823,131.89,131.88,100.0]
[1719158738420,20.0,131.89,131.85,200.0]
[1719158738623,18.9547,131.9,131.85,100.0]
[1719158738821,20.0,131.89,131.85,100.0]
[1719158739031,7.5838,131.86,131.85,100.0]
[1719158739415,27.5838,131.86,131.85,100.0]
[1719158739826,20.0,131.86,131.85,100.0]
[1719158740015,20.0,131.86,131.85,200.0]
[1719158743242,7.5828,131.88,131.87,100.0]
[1719158743422,27.5828,131.88,131.87,100.0]
[1719158745841,7.5809,131.91,131.9,100.0]
[1719158746933,7.5797,131.93,131.92,100.0]
[1719158747451,27.5797,131.93,131.92,100.0]
[1719158748427,7.5809,131.91,131.9,100.0]
[1719158749246,7.5806,131.92,131.9,100.0]
[1719158750520,7.5809,131.91,131.9,100.0]
[1719158750927,27.5809,131.91,131.9,100.0]
[1719158753261,20.0,131.91,131.88,100.0]
[1719158753460,7.582,131.89,131.88,100.0]
[1719158753833,7.583,131.88,131.86,100.0]
[1719158754941,27.5822,131.89,131.88,100.0]
[1719158756069,20.0,131.89,131.88,200.0]
[1719158756970,27.582,131.89,131.88,200.0]
[1719158758775,20.0,131.89,131.88,200.0]
[1719158758951,27.582,131.89,131.88,200.0]
[1719158759152,27.582,131.89,131.88,100.0]
[1719158761149,20.0,131.89,131.84,200.0]
[1719158761356,7.5843,131.85,131.84,100.0]
[1719158762069,7.5832,131.87,131.86,100.0]
[1719158762436,27.5832,131.87,131.86,100.0]
[1719158763041,27.5832,131.87,131.86,200.0]
[1719158763243,20.0,131.87,131.86,200.0]
[1719158763946,27.5832,131.87,131.86,200.0]
[1719158764366,27.5832,131.87,131.86,100.0]
[1719158764564,27.5832,131.87,131.86,200.0]
[1719158765144,20.0,131.87,131.86,200.0]
[1719158765657,27.5832,131.87,131.86,200.0]
[1719158766782,27.5832,131.87,131.86,100.0]
[1719158768047,20.0,131.87,131.86,100.0]
[1719158768271,20.0,131.87,131.86,200.0]
[1719158768769,27.5832,131.87,131.86,200.0]
[1719158768971,20.0,131.87,131.86,200.0]
[1719158769370,27.5832,131.87,131.86,200.0]
[1719158770973,7.582,131.89,131.88,200.0]
[1719158771362,27.582,131.89,131.88,200.0]
[1719158771755,20.0,131.89,131.88,200.0]
[1719158771968,7.5817,131.9,131.88,200.0]
[1719158772597,18.9467,131.95,131.92,100.0]
[1719158772772,7.5786,131.95,131.94,100.0]
[1719158772950,27.5786,131.95,131.94,100.0]
[1719158782082,20.0,131.95,131.92,100.0]
[1719158782288,18.9453,131.96,131.92,100.0]
[1719158782588,20.0,131.94,131.92,100.0]
[1719158782800,18.9453,131.96,131.92,100.0]
[1719158783091,7.5797,131.93,131.92,100.0]
[1719158784578,7.5794,131.94,131.92,100.0]
[1719158785469,7.5797,131.93,131.92,100.0]
[1719158785878,27.5797,131.93,131.92,100.0]
[1719158787975,27.5797,131.93,131.9,100.0]
[1719158787976,7.5805,131.92,131.9,100.0]
[1719158788382,20.0,131.91,131.9,100.0]
[1719158788977,20.0,131.91,131.88,100.0]
[1719158789187,7.5818,131.9,131.88,100.0]
[1719158789391,20.0,131.89,131.88,100.0]
[1719158790294,27.582,131.89,131.88,100.0]
[1719158802107,20.0,131.89,131.88,100.0]
[1719158802988,27.582,131.89,131.88,100.34]
[1719158804489,20.0,131.89,131.88,100.34]
[1719158810519,20.0,131.89,131.88,145.92]
[1719158810709,7.5792,131.94,131.93,100.0]
[1719158811014,27.5792,131.94,131.93,100.0]
[1719158811390,7.5792,131.94,131.93,100.0]
[1719158812696,27.5792,131.94,131.93,100.0]
[1719158821040,46.5272,131.94,131.93,100.0]
[1719158823530,27.5792,131.94,131.93,100.0]
[1719158832596,20.0,131.94,131.87,100.0]
[1719158832805,7.5815,131.9,131.89,100.0]
[1719158833502,27.5815,131.9,131.89,100.0]
[1719158845222,27.5815,131.9,131.86,100.0]
[1719158845223,7.5835,131.87,131.86,100.0]
[1719158845523,7.5849,131.84,131.83,100.0]
[1719158845901,27.5849,131.84,131.83,100.0]
[1719158847406,20.0,131.84,131.83,200.0]
[1719158849335,20.0,131.84,131.83,245.75]
[1719158849501,7.5834,131.87,131.86,100.0]
[1719158849946,27.5834,131.87,131.86,100.0]
[1719158864427,27.5834,131.87,131.84,100.0]
[1719158864614,7.5843,131.85,131.84,100.0]
[1719158864805,27.5843,131.85,131.84,100.0]
[1719158869369,27.5843,131.85,131.81,145.58]
[1719158869370,7.5855,131.83,131.82,100.0]
[1719158869515,7.5855,131.83,131.79,100.0]
[1719158869516,7.5866,131.81,131.8,100.0]
[1719158869714,7.5872,131.8,131.79,100.0]
[1719158869914,27.5872,131.8,131.79,100.0]
[1719158870142,20.0,131.8,131.77,100.0]
[1719158870344,7.5884,131.78,131.77,100.0]
[1719158870845,27.5884,131.78,131.77,100.0]
[1719158874138,7.589,131.77,131.75,100.0]
[1719158874341,20.0,131.76,131.75,100.0]
[1719158874925,20.0,131.76,131.75,200.0]
[1719158875137,20.0,131.76,131.75,100.0]
[1719158876752,20.0,131.76,131.75,200.0]
[1719158878634,27.5895,131.76,131.75,100.0]
[1719158885155,27.5895,131.76,131.75,200.0]
[1719158885943,27.5895,131.76,131.75,100.0]
[1719158886560,46.5633,131.76,131.75,100.0]
[1719158886761,38.9738,131.76,131.71,100.0]
[1719158887337,7.5915,131.73,131.71,100.0]
[1719158888260,7.5918,131.72,131.69,200.0]
[1719158888471,16.3443,131.75,131.69,200.0]
[1719158888472,7.593,131.7,131.69,100.0]
[1719158888759,27.593,131.7,131.69,100.0]
[1719158889974,7.5935,131.69,131.68,5.478e-05]
[1719158890463,27.5935,131.69,131.68,5.478e-05]
[1719158891256,46.5774,131.69,131.68,5.478e-05]
[1719158892357,46.5774,131.69,131.65,100.0]
[1719158892358,38.9839,131.69,131.65,100.0]
[1719158892562,7.5947,131.67,131.66,100.0]
[1719158892777,27.5947,131.67,131.66,100.0]
[1719158895174,20.0,131.67,131.66,100.0]
[1719158895347,27.5947,131.67,131.66,100.0]
[1719158895968,20.0,131.67,131.66,100.0]
[1719158896149,7.593,131.7,131.69,200.0]
[1719158896657,34.4155,131.74,131.69,200.0]
[1719158896658,7.5926,131.71,131.69,200.0]
[1719158896981,7.593,131.7,131.69,200.0]
[1719158897475,7.593,131.7,131.69,100.0]
[1719158897655,7.593,131.7,131.67,100.0]
[1719158897656,7.5941,131.68,131.67,100.0]
[1719158897856,7.5941,131.68,131.65,100.0]
[1719158898172,7.5947,131.67,131.66,100.0]
[1719158898360,7.5947,131.67,131.65,100.0]
[1719158898361,7.5953,131.66,131.65,100.0]
[1719158898955,27.5953,131.66,131.65,100.0]
[1719158901075,7.5958,131.65,131.64,100.8489896]
[1719158901580,27.5958,131.65,131.64,100.8489896]
[1719158902264,27.5958,131.65,131.64,0.8489896]
[1719158902452,27.5958,131.65,131.61,100.0]
[1719158902453,18.9913,131.64,131.61,100.0]
[1719158902657,61.0028,131.69,131.61,100.0]
[1719158902976,7.5976,131.62,131.61,100.0]
[1719158903153,7.5993,131.59,131.58,0.07625]
[1719158903356,43.0379,131.59,131.58,0.07625]
[1719158903557,35.4386,131.59,131.56,100.0]
[1719158903758,15.4386,131.59,131.56,100.0]
[1719158903953,20.0,131.58,131.55,100.0]
[1719158904272,7.6016,131.55,131.54,100.0]
[1719158904782,27.6016,131.55,131.54,100.0]
[1719158905157,7.6022,131.54,131.53,100.0]
[1719158905357,27.6022,131.54,131.53,100.0]
[1719158905573,7.6028,131.53,131.52,1.03108236]
[1719158905979,7.6034,131.52,131.51,0.8489896]
[1719158906383,27.6034,131.52,131.51,0.3489896]
[1719158907759,7.6058,131.48,131.46,100.0]
[1719158907973,54.4484,131.52,131.46,200.0]